fUSD/lending_fUSD_20251215
["ID","MTS","AMOUNT","RATE_DAILY","PERIOD"]
[398533804,1765801833590,-500.0,0.00016862,2]
[398533805,1765801833600,-500.0,0.00016862,2]
[398533806,1765801833610,-150.0,0.00016862,2]
[398533807,1765801833619,-500.0,0.00016862,2]
[398533808,1765801833629,-150.0,0.00016862,2]
[398533809,1765801833638,-151.80963422,0.00016862,2]
[398533810,1765801833648,-155.20312827,0.00016862,2]
[398533811,1765801833657,-150.0,0.00016862,2]
[398533812,1765801833667,-6060.97755803,0.00016867,2]
[398533813,1765801833679,-6060.97755803,0.0001688,2]
[398533814,1765801833689,-1571.89,0.00016888,2]
[398533815,1765801833698,-6060.97755803,0.00016892,2]
[398533816,1765801833707,-2134.1708906,0.000169,2]
[398533817,1765801833718,-153.50207073,0.000169,2]
[398533818,1765801833730,-2134.17089054,0.00016905,2]
[398533819,1765801833750,-6060.97755803,0.00016905,2]
[398533820,1765801833764,-2134.17089054,0.00016909,2]
[398533821,1765801833774,-510.0,0.00016912,2]
[398533822,1765801833783,-2134.17089054,0.00016914,2]
[398533823,1765801833793,-6060.97755803,0.00016917,2]
[398533824,1765801833804,-2134.17089054,0.00016919,2]
[398533825,1765801833813,-2134.17089054,0.00016923,2]
[398533826,1765801833823,-2134.17089054,0.00016928,2]
[398533827,1765801833845,-6060.97755803,0.0001693,2]
[398533828,1765801833857,-2134.17089054,0.00016933,2]
[398533829,1765801833867,-2134.17089054,0.00016937,2]
[398533830,1765801833877,-2134.17089054,0.00016942,2]
[398533831,1765801833887,-6060.97755803,0.00016942,2]
[398533832,1765801833898,-150.0,0.00016973,2]
[398533833,1765801833908,-150.0,0.00016973,2]
[398533834,1765801833919,-242.77,0.0001699,2]
[398533835,1765801833929,-481.25235646,0.00016995,2]
[398533836,1765801833939,-151.0,0.00016997,2]
[398533837,1765801833948,-500.0,0.00016999,2]
[398533838,1765801833958,-150.0,0.00016999,2]
[398533839,1765801833968,-500.0,0.00016999,2]
[398533840,1765801833978,-456.0,0.00016999,2]
[398533841,1765801833989,-500.0,0.00016999,2]
[398533842,1765801833998,-500.0,0.00016999,2]
[398533843,1765801834008,-500.0,0.00016999,2]
[398533844,1765801834017,-552.0,0.00016999,2]
[398533845,1765801834027,-500.0,0.00016999,2]
[398533846,1765801834036,-419.8326285,0.00016999,2]
[398533847,1765801834045,-498.79894265,0.00016999,2]
[398533848,1765801834054,-500.0,0.00016999,2]
[398533849,1765801834063,-269.59364681,0.00016999,2]
[398533850,1765801834073,-150.0,0.00016999,2]
[398533851,1765801834082,-150.0,0.00016999,2]
[398533852,1765801834091,-150.0,0.00016999,2]
[398533853,1765801834101,-520.51805778,0.00016999,2]
[398533854,1765801834110,-2000.0,0.00016999,2]
[398533855,1765801834119,-249.87817541,0.00016999,2]
[398533856,1765801834128,-500.0,0.00016999,2]
[398533857,1765801834137,-207.18201818,0.00016999,2]
[398533858,1765801834146,-444.65632683,0.00016999,2]
[398533859,1765801834156,-239.35846839,0.00016999,2]
[398533860,1765801834165,-3015.43,0.00016999,2]
[398533861,1765801834174,-515.85,0.00016999,2]
[398533862,1765801834184,-515.85,0.00016999,2]
[398533863,1765801834194,-515.85,0.00016999,2]
[398533864,1765801834204,-515.85,0.00016999,2]
[398533865,1765801834214,-515.85,0.00016999,2]
[398533866,1765801834223,-515.85,0.00016999,2]
[398533867,1765801834233,-515.85,0.00016999,2]
[398533868,1765801834244,-515.85,0.00016999,2]
[398533869,1765801834253,-515.85,0.00016999,2]
[398533870,1765801834262,-515.85,0.00016999,2]
[398533871,1765801834272,-515.85,0.00016999,2]
[398533872,1765801834282,-515.85,0.00016999,2]
[398533873,1765801834291,-515.85,0.00016999,2]
[398533874,1765801834301,-515.85,0.00016999,2]
[398533875,1765801834312,-515.85,0.00016999,2]
[398533876,1765801834321,-515.85,0.00016999,2]
[398533877,1765801834332,-515.85,0.00016999,2]
[398533878,1765801834341,-515.85,0.00016999,2]
[398533879,1765801834350,-515.85,0.00016999,2]
[398533880,1765801834360,-515.85,0.00016999,2]
[398533881,1765801834368,-515.85,0.00016999,2]
[398533882,1765801834378,-515.85,0.00016999,2]
[398533883,1765801834387,-515.85,0.00016999,2]
[398533884,1765801834396,-515.88531441,0.00016999,2]
[398533885,1765801834404,-666.0,0.00016999,2]
[398533886,1765801834414,-25486.24592932,0.00017,2]
[398533887,1765801834430,-21045.81228555,0.00017,2]
[398533888,1765801834441,-28162.8915442,0.00017,2]
[398533895,1765801839341,-2177.62818745,0.00015793,2]
[398533897,1765801839360,-300.11453388,0.00015793,2]
[398533898,1765801839371,-250.81906007,0.00015793,2]
[398533899,1765801839380,-151.0,0.00016438,2]
[398533900,1765801839389,-311.66751828,0.00016554,2]
[398533901,1765801839398,-61667.19744267,0.00017,2]
[398533902,1765801839409,-1172.66524168,0.00017,2]
[398533903,1765801839420,-135633.83697128,0.00017,2]
[398533904,1765801839429,-250.0,0.00017,2]
[398533905,1765801839438,-250.0,0.00017,2]
[398533906,1765801839447,-250.0,0.00017,2]
[398533907,1765801839456,-250.0,0.00017,2]
[398533908,1765801839464,-250.0,0.00017,2]
[398533909,1765801839473,-250.0,0.00017,2]
[398533910,1765801839482,-250.0,0.00017,2]
[398533911,1765801839491,-250.0,0.00017,2]
[398533912,1765801839500,-250.0,0.00017,2]
[398533913,1765801839509,-511.91200043,0.00017,2]
[398533914,1765801839518,-2000.0,0.00017,2]
[398533915,1765801839527,-250.0,0.00017,2]
[398533916,1765801839539,-657.31,0.00017,2]
[398533917,1765801839547,-6147745.94407674,0.00017,2]
[398533918,1765801839761,-501.9971,0.00017,2]
[398533919,1765801839772,-1654.59999995,0.00017,2]
[398533920,1765801839784,-756.76,0.00017,2]
[398533921,1765801839795,-691.10317124,0.00017,2]
[398533922,1765801839807,-4521.37273138,0.00017,2]
[398533923,1765801839819,-4740.32327929,0.00017,2]
[398533924,1765801839830,-2457.48653057,0.00017,2]
[398533925,1765801839850,-5431.42356605,0.00017,2]
[398533926,1765801839866,-1416.33611827,0.00017,2]
[398533927,1765801839878,-448.125,0.00017,2]
[398533928,1765801839889,-3920.56315134,0.00017,2]
[398533929,1765801839905,-21718.75184512,0.00017,2]
[398533931,1765801839916,-1310.89922344,0.00017,2]
[398533932,1765801839931,-7762.57724523,0.00017,2]
[398533933,1765801839949,-5234.16385438,0.00017,2]
[398533934,1765801839961,-88519.75111323,0.00017,2]
[398533935,1765801839970,-2372406.46732497,0.00017,2]
[398533936,1765801839978,-151.0,0.00017,2]
[398533937,1765801839988,-151.0,0.00017,2]
[398533938,1765801839997,-445.598813,0.00017,2]
[398533939,1765801840008,-151.0,0.00017,2]
[398533940,1765801840018,-445.598813,0.00017,2]
[398533941,1765801840028,-151.0,0.00017,2]
[398533942,1765801840037,-151.0,0.00017,2]
[398533943,1765801840046,-445.598813,0.00017,2]
[398533944,1765801840056,-151.0,0.00017,2]
[398533945,1765801840065,-445.598813,0.00017,2]
[398533946,1765801840075,-717.946667,0.00017,2]
[398533947,1765801840084,-1359.796361,0.00017,2]
[398533948,1765801840093,-151.0,0.00017,2]
[398533949,1765801840102,-151.0,0.00017,2]
[398533950,1765801840111,-151.0,0.00017,2]
[398533951,1765801840120,-1359.796361,0.00017,2]
[398533952,1765801840129,-151.0,0.00017,2]
[398533953,1765801840138,-717.946667,0.00017,2]
[398533954,1765801840147,-171.221128,0.00017,2]
[398533955,1765801840156,-151.0,0.00017,2]
[398533956,1765801840165,-1359.796361,0.00017,2]
[398533957,1765801840174,-717.946667,0.00017,2]
[398533958,1765801840183,-717.946667,0.00017,2]
[398533959,1765801840191,-1359.796361,0.00017,2]
[398533960,1765801840200,-365.25428,0.00017,2]
[398533961,1765801840209,-365.25428,0.00017,2]
[398533962,1765801840732,-399.308384,0.00017,2]
[398533963,1765801840741,-399.308384,0.00017,2]
[398533964,1765801840750,-182.039087,0.00017,2]
[398533965,1765801840759,-399.308384,0.00017,2]
[398533966,1765801840767,-182.039087,0.00017,2]
[398533967,1765801840777,-399.308384,0.00017,2]
[398533968,1765801840786,-182.039087,0.00017,2]
[398533969,1765801840795,-182.039087,0.00017,2]
[398533970,1765801840805,-151.0,0.00017,2]
[398533971,1765801840814,-151.0,0.00017,2]
[398533972,1765801840823,-3336.45784,0.00017,2]
[398533973,1765801840832,-3336.45784,0.00017,2]
[398533974,1765801840842,-3336.45785,0.00017,2]
[398533975,1765801840851,-3336.45784,0.00017,2]
[398533976,1765801840866,-3336.45784,0.00017,2]
[398533977,1765801840875,-3336.45784,0.00017,2]
[398533978,1765801840893,-151.0,0.00017,2]
[398533979,1765801840907,-151.0,0.00017,2]
[398533980,1765801840916,-188.796659,0.00017,2]
[398533981,1765801840926,-365.25428,0.00017,2]
[398533982,1765801840937,-365.25428,0.00017,2]
[398533983,1765801840947,-476.25,0.00017,2]
[398533984,1765801840957,-476.25,0.00017,2]
[398533985,1765801840967,-476.25,0.00017,2]
[398533986,1765801840977,-476.25,0.00017,2]
[398533987,1765801840987,-681.380871,0.00017,2]
[398533988,1765801840997,-681.380871,0.00017,2]
[398533989,1765801841007,-681.380871,0.00017,2]
[398533990,1765801841016,-681.380871,0.00017,2]
[398533991,1765801841028,-334.256187,0.00017,2]
[398533992,1765801841038,-334.256187,0.00017,2]
[398533993,1765801841049,-334.256187,0.00017,2]
[398533994,1765801841058,-334.256187,0.00017,2]
[398533995,1765801841068,-658.528015,0.00017,2]
[398533996,1765801841077,-151.0,0.00017,2]
[398533997,1765801841087,-658.528015,0.00017,2]
[398533998,1765801841097,-151.0,0.00017,2]
[398533999,1765801841106,-658.528015,0.00017,2]
[398534000,1765801841117,-658.528015,0.00017,2]
[398534001,1765801841126,-1914.705039,0.00017,2]
[398534002,1765801841136,-797.629675,0.00017,2]
[398534003,1765801841145,-736.443369,0.00017,2]
[398534004,1765801841155,-1914.705039,0.00017,2]
[398534005,1765801841164,-797.629675,0.00017,2]
[398534006,1765801841173,-736.443369,0.00017,2]
[398534007,1765801841184,-1914.705039,0.00017,2]
[398534008,1765801841194,-797.629675,0.00017,2]
[398534009,1765801841203,-1914.705039,0.00017,2]
[398534010,1765801841212,-797.629675,0.00017,2]
[398534011,1765801841221,-151.0,0.00017,2]
[398534012,1765801841231,-151.0,0.00017,2]
[398534013,1765801841240,-151.0,0.00017,2]
[398534014,1765801841250,-181.320463,0.00017,2]
[398534015,1765801841259,-500.0,0.00017042,2]
[398534016,1765801841269,-150.0,0.00017088,2]
[398534017,1765801841279,-150.0,0.00017088,2]
[398534018,1765801841288,-150.0,0.00017088,2]
[398534019,1765801841298,-150.0,0.00017088,2]
[398534020,1765801841307,-150.0,0.00017088,2]
[398534021,1765801841318,-150.0,0.00017088,2]
[398534022,1765801841328,-150.0,0.00017088,2]
[398534023,1765801841337,-187.53685675,0.00017088,2]
[398534024,1765801841347,-150.0,0.00017088,2]
[398534025,1765801841356,-150.4153374,0.00017088,2]
[398534026,1765801841366,-150.0,0.00017088,2]
[398534027,1765801841375,-150.0,0.00017088,2]
[398534028,1765801841385,-150.0,0.00017088,2]
[398534029,1765801841395,-150.50668054,0.00017088,2]
[398534030,1765801841404,-150.0,0.00017088,2]
[398534031,1765801841413,-1502.0,0.00017102,2]
[398534032,1765801841422,-574.12855637,0.00017102,2]
[398534033,1765801841432,-150.0,0.0001711,2]
[398534034,1765801841442,-480.76,0.00017123,2]
[398534035,1765801841451,-480.76,0.00017123,2]
[398534036,1765801841461,-959.03,0.00017123,2]
[398534037,1765801841471,-658.61,0.00017123,2]
[398534038,1765801841481,-960.96,0.00017123,2]
[398534039,1765801841490,-480.76,0.00017123,2]
[398534040,1765801841500,-500.0,0.00017136,2]
[398534041,1765801841509,-150.13031673,0.00017136,2]
[398534042,1765801841518,-500.0,0.00017136,2]
[398534043,1765801841527,-456.0,0.00017136,2]
[398534044,1765801841537,-500.0,0.00017136,2]
[398534045,1765801841547,-500.0,0.00017136,2]
[398534046,1765801841556,-500.0,0.00017136,2]
[398534047,1765801841566,-552.0,0.00017136,2]
[398534048,1765801841577,-500.0,0.00017136,2]
[398534049,1765801841587,-500.0,0.00017136,2]
[398534050,1765801841596,-200.0,0.00017136,2]
[398534051,1765801841606,-157.96168769,0.00017136,2]
[398534052,1765801841615,-1571.89,0.00017162,2]
[398534053,1765801841625,-5031.0,0.00017164,2]
[398534054,1765801841634,-9574.39,0.00017179,2]
[398534055,1765801841644,-153.50207072,0.00017186,2]
[398534056,1765801841654,-200.0,0.00017247,2]
[398534057,1765801841665,-150.0,0.0001726,2]
[398534058,1765801841675,-150.0,0.0001726,2]
[398534059,1765801841684,-150.0,0.0001726,2]
[398534060,1765801841694,-150.0,0.0001726,2]
[398534061,1765801841704,-150.0,0.0001726,2]
[398534062,1765801841714,-947.46,0.0001726,2]
[398534063,1765801841724,-150.54,0.0001726,2]
[398534064,1765801841733,-420.0,0.00017268,2]
[398534065,1765801841743,-1006.29721246,0.00017268,2]
[398534066,1765801841753,-1500.0,0.00017268,2]
[398534067,1765801841762,-1500.0,0.00017268,2]
[398534068,1765801841771,-1417.55299023,0.00017268,2]
[398534069,1765801841781,-500.0,0.00017273,2]
[398534070,1765801841790,-500.0,0.00017273,2]
[398534071,1765801841800,-456.0,0.00017273,2]
[398534072,1765801841810,-500.0,0.00017273,2]
[398534073,1765801841819,-500.0,0.00017273,2]
[398534074,1765801841829,-244.0,0.00017273,2]
[398534075,1765801841840,-552.0,0.00017273,2]
[398534076,1765801841850,-350.0,0.00017273,2]
[398534077,1765801841860,-500.0,0.00017273,2]
[398534078,1765801841870,-150.0,0.00017278,2]
[398534079,1765801841880,-152.37400623,0.00017289,2]
[398534080,1765801841893,-1680.0,0.00017355,2]
[398534081,1765801841902,-2500.0,0.00017358,2]
[398534082,1765801841912,-2500.0,0.00017358,2]
[398534083,1765801841923,-200.0,0.00017358,2]
[398534084,1765801841933,-200.0,0.00017358,2]
[398534085,1765801841942,-200.0,0.00017358,2]
[398534086,1765801841953,-200.0,0.00017358,2]
[398534087,1765801841964,-300.0,0.00017358,2]
[398534088,1765801841973,-202.48923913,0.00017358,2]
[398534089,1765801841983,-150.0,0.00017358,3]
[398534090,1765801841993,-287.59853939,0.00017358,3]
[398534091,1765801842002,-2500.0,0.00017358,2]
[398534092,1765801842011,-2500.0,0.00017358,2]
[398534093,1765801842020,-300.0,0.00017358,2]
[398534094,1765801842030,-300.0,0.00017358,2]
[398534095,1765801842040,-300.0,0.00017358,2]
[398534096,1765801842049,-300.0,0.00017358,2]
[398534097,1765801842059,-410.93205385,0.00017358,2]
[398534098,1765801842068,-2500.0,0.00017358,2]
[398534099,1765801842078,-300.0,0.00017358,2]
[398534100,1765801842087,-250.0,0.00017358,2]
[398534101,1765801842096,-5000.0,0.00017358,3]
[398534102,1765801842105,-1022.63207373,0.00017358,3]
[398534103,1765801842114,-193.58152685,0.00017358,2]
[398534104,1765801842125,-195.0,0.00017358,2]
[398534105,1765801842134,-350.0,0.0001741,2]
[398534106,1765801842144,-500.0,0.0001741,2]
[398534107,1765801842153,-456.0,0.0001741,2]
[398534108,1765801842162,-500.0,0.0001741,2]
[398534109,1765801842171,-500.0,0.0001741,2]
[398534110,1765801842180,-552.0,0.0001741,2]
[398534111,1765801842190,-500.0,0.0001741,2]
[398534112,1765801842199,-1571.89,0.00017436,2]
[398534113,1765801842208,-223.06834373,0.00017459,2]
[398534114,1765801842218,-150.0,0.00017467,2]
[398534115,1765801842227,-150.0,0.00017467,2]
[398534116,1765801842236,-150.0,0.00017467,2]
[398534117,1765801842245,-153.50207072,0.00017471,2]
[398534118,1765801842254,-500.0,0.00017547,2]
[398534119,1765801842263,-456.0,0.00017547,2]
[398534121,1765801842272,-500.0,0.00017547,2]
[398534123,1765801842282,-500.0,0.00017547,2]
[398534124,1765801842291,-552.0,0.00017547,2]
[398534125,1765801842300,-416.35980985,0.00017547,2]
[398534126,1765801842310,-150.0,0.00017562,2]
[398534127,1765801842319,-150.0,0.00017562,2]
[398534128,1765801842328,-1502.0,0.0001765,2]
[398534129,1765801842337,-595.37131296,0.0001765,2]
[398534131,1765801842346,-1600.0,0.00017656,2]
[398534133,1765801842355,-150.0,0.00017657,2]
[398534135,1765801842364,-1261.0,0.00017679,2]
[398534136,1765801842373,-589.0,0.00017679,2]
[398534137,1765801842383,-911.0,0.00017679,2]
[398534138,1765801842391,-1196.0,0.00017679,2]
[398534139,1765801842400,-611.0,0.00017679,2]
[398534140,1765801842409,-4798.0,0.00017679,2]
[398534141,1765801842418,-2426.0,0.00017679,2]
[398534142,1765801842427,-500.0,0.00017684,2]
[398534143,1765801842436,-456.0,0.00017684,2]
[398534144,1765801842445,-500.0,0.00017684,2]
[398534145,1765801842454,-500.0,0.00017684,2]
[398534146,1765801842464,-552.0,0.00017684,2]
[398534147,1765801842473,-1000.0,0.000177,2]
[398534148,1765801842482,-323.34,0.00017701,2]
[398534149,1765801842492,-166.67,0.00017707,2]
[398534150,1765801842502,-1571.89,0.0001771,2]
[398534151,1765801842511,-150.0,0.00017721,2]
[398534152,1765801842522,-150.0,0.00017721,2]
[398534153,1765801842532,-153.50207072,0.00017757,2]
[398534154,1765801842541,-150.0,0.00017799,2]
[398534155,1765801842550,-150.0,0.00017799,2]
[398534156,1765801842560,-150.0,0.00017799,2]
[398534157,1765801842569,-150.0,0.00017799,2]
[398534158,1765801842578,-150.0,0.00017799,2]
[398534159,1765801842588,-150.0,0.00017799,2]
[398534160,1765801842598,-150.0,0.00017799,2]
[398534161,1765801842608,-150.0,0.00017799,2]
[398534162,1765801842617,-150.0,0.00017799,2]
[398534163,1765801842626,-150.0,0.00017799,2]
[398534164,1765801842635,-649.0,0.00017807,2]
[398534165,1765801842644,-649.0,0.0001781,2]
[398534166,1765801842653,-2000.0,0.00017816,2]
[398534167,1765801842663,-1505.21366094,0.00017816,2]
[398534168,1765801842672,-2711.7913375,0.00017819,2]
[398534169,1765801842683,-22141.6587467,0.00017819,2]
[398534170,1765801842695,-316.01659576,0.00017821,2]
[398534171,1765801842704,-456.0,0.00017821,2]
[398534172,1765801842714,-500.0,0.00017821,2]
[398534173,1765801842723,-500.0,0.00017821,2]
[398534174,1765801842732,-552.0,0.00017821,2]
[398534175,1765801842741,-150.0,0.00017847,2]
[398534176,1765801842750,-150.0,0.00017847,2]
[398534177,1765801842759,-150.0,0.00017847,2]
[398534178,1765801842768,-1000.0,0.00017859,2]
[398534179,1765801842777,-4371.5065145,0.00017868,2]
[398534180,1765801842786,-151.0,0.00017923,2]
[398534181,1765801842795,-376.36040712,0.00017923,2]
[398534182,1765801842804,-311.1,0.00017923,2]
[398534183,1765801842813,-649.0,0.00017943,2]
[398534184,1765801842822,-456.0,0.00017958,2]
[398534186,1765801842831,-500.0,0.00017958,2]
[398534188,1765801842840,-500.0,0.00017958,2]
[398534190,1765801842849,-552.0,0.00017958,2]
[398534191,1765801842858,-1571.89,0.00017984,2]
[398534192,1765801842868,-649.0,0.00017989,2]
[398534193,1765801842877,-543.7,0.00017992,2]
[398534194,1765801842890,-151.0,0.00017997,2]
[398534195,1765801842899,-11450.89463886,0.00017999,2]
[398534196,1765801842909,-2000.0,0.00017999,2]
[398534197,1765801842919,-2000.0,0.00017999,2]
[398534198,1765801842928,-150.0,0.00017999,2]
[398534199,1765801842938,-60455.51396452,0.00018,7]
[398534200,1765801842947,-16346.81020013,0.00018,2]
[398534201,1765801842957,-101850.16563518,0.00018,2]
[398534202,1765801842967,-32790.18453766,0.00018,2]
[398534203,1765801842976,-1184.75012873,0.00018,2]
[398534204,1765801842985,-500.0,0.00018,2]
[398534205,1765801842994,-200.516518,0.00018,2]
[398534206,1765801843003,-150.0,0.00018037,2]
[398534207,1765801843012,-150.0,0.00018037,2]
[398534208,1765801843022,-150.0,0.00018037,2]
[398534209,1765801843031,-150.0,0.00018037,2]
[398534210,1765801843041,-150.0,0.00018037,2]
[398534211,1765801843050,-150.0,0.00018037,2]
[398534212,1765801843059,-153.50207072,0.00018043,2]
[398534213,1765801843068,-649.0,0.00018051,2]
[398534214,1765801843078,-964.17,0.00018082,2]
[398534215,1765801843087,-1408.14,0.00018082,2]
[398534216,1765801843096,-704.07,0.00018082,2]
[398534217,1765801843106,-968.46,0.00018082,2]
[398534218,1765801843115,-480.71,0.00018082,2]
[398534219,1765801843125,-1408.14,0.00018082,2]
[398534220,1765801843134,-1000.0,0.00018082,2]
[398534221,1765801843143,-356.32,0.00018082,2]
[398534222,1765801843153,-553.28,0.00018082,2]
[398534223,1765801843162,-553.28,0.00018082,2]
[398534224,1765801843173,-553.28,0.00018082,2]
[398534225,1765801843183,-553.28,0.00018082,2]
[398534226,1765801843195,-553.28,0.00018082,2]
[398534227,1765801843207,-464.18,0.00018082,2]
[398534228,1765801843216,-315.97,0.00018082,2]
[398534229,1765801843226,-168.0,0.00018086,2]
[398534230,1765801843235,-456.0,0.00018095,2]
[398534231,1765801843245,-500.0,0.00018095,2]
[398534232,1765801843254,-500.0,0.00018095,2]
[398534233,1765801843264,-552.0,0.00018095,2]
[398534234,1765801843275,-1771.17625499,0.000181,2]
[398534235,1765801843285,-168.0,0.00018112,2]
[398534236,1765801843295,-276.0,0.00018112,2]
[398534237,1765801843304,-649.0,0.00018154,2]
[398534238,1765801843313,-223.06834373,0.00018181,2]
[398534239,1765801843323,-1502.0,0.00018198,2]
[398534240,1765801843332,-617.40005154,0.00018198,2]
[398534241,1765801843341,-169.809,0.00018218,2]
[398534242,1765801843350,-182.06,0.00018224,2]
[398534243,1765801843359,-150.0,0.00018227,2]
[398534244,1765801843369,-150.0,0.00018227,2]
[398534245,1765801843378,-150.0,0.00018227,2]
[398534246,1765801843389,-456.0,0.00018232,2]
[398534247,1765801843399,-500.0,0.00018232,2]
[398534248,1765801843407,-512.11676364,0.00018232,2]
[398534249,1765801843416,-552.0,0.00018232,2]
[398534250,1765801843425,-1571.89,0.00018258,2]
[398534251,1765801843434,-1000.0,0.00018264,2]
[398534252,1765801843443,-543.7,0.00018266,2]
[398534253,1765801843452,-2608.8762627,0.00018269,2]
[398534254,1765801843461,-605.0824354,0.00018271,2]
[398534255,1765801843470,-4940.4718621,0.00018271,2]
[398534256,1765801843479,-151.70691119,0.00018274,2]
[398534257,1765801843488,-155.11,0.00018312,2]
[398534258,1765801843496,-153.50207072,0.00018329,2]
[398534259,1765801843506,-975.4149486,0.00018332,2]
[398534260,1765801843515,-3204.047609,0.0001834,2]
[398534261,1765801843523,-1862.585,0.00018343,2]
[398534262,1765801843533,-150.0,0.00018353,2]
[398534263,1765801843541,-150.0,0.00018353,2]
[398534264,1765801843550,-151.0,0.00018356,2]
[398534265,1765801843559,-151.0,0.00018356,2]
[398534266,1765801843568,-151.0,0.00018356,2]
[398534267,1765801843577,-252.645373,0.00018356,2]
[398534268,1765801843586,-252.645373,0.00018356,2]
[398534269,1765801843595,-252.645373,0.00018356,2]
[398534270,1765801843604,-162.958621,0.00018356,2]
[398534271,1765801843613,-252.645373,0.00018356,2]
[398534272,1765801843622,-151.0,0.00018356,2]
[398534273,1765801843630,-309.117231,0.00018356,2]
[398534274,1765801843639,-151.0,0.00018356,2]
[398534275,1765801843648,-151.0,0.00018356,2]
[398534276,1765801843657,-590.483127,0.00018356,2]
[398534277,1765801843666,-590.483127,0.00018356,2]
[398534278,1765801843675,-309.117231,0.00018356,2]
[398534279,1765801843684,-151.0,0.00018356,2]
[398534280,1765801843693,-309.117231,0.00018356,2]
[398534281,1765801843703,-590.483127,0.00018356,2]
[398534282,1765801843712,-309.117231,0.00018356,2]
[398534283,1765801843721,-151.0,0.00018356,2]
[398534284,1765801843731,-151.0,0.00018356,2]
[398534285,1765801843740,-151.0,0.00018356,2]
[398534286,1765801843750,-151.0,0.00018356,2]
[398534287,1765801843759,-157.690343,0.00018356,2]
[398534288,1765801843768,-590.483127,0.00018356,2]
[398534289,1765801843777,-247.180426,0.00018356,2]
[398534290,1765801843787,-151.0,0.00018356,2]
[398534291,1765801843796,-154.515968,0.00018356,2]
[398534292,1765801843806,-386.912839,0.00018356,2]
[398534293,1765801843815,-247.180426,0.00018356,2]
[398534294,1765801843825,-247.180426,0.00018356,2]
[398534295,1765801843834,-348.911919,0.00018356,2]
[398534296,1765801843844,-247.180426,0.00018356,2]
[398534297,1765801843854,-348.911919,0.00018356,2]
[398534298,1765801843865,-348.911919,0.00018356,2]
[398534299,1765801843875,-348.911919,0.00018356,2]
[398534300,1765801843888,-299.619932,0.00018356,2]
[398534301,1765801843898,-299.619932,0.00018356,2]
[398534302,1765801843908,-299.619932,0.00018356,2]
[398534303,1765801843918,-299.619932,0.00018356,2]
[398534304,1765801843927,-691.499708,0.00018356,2]
[398534305,1765801843936,-691.499708,0.00018356,2]
[398534306,1765801843946,-691.499708,0.00018356,2]
[398534307,1765801843962,-691.499708,0.00018356,2]
[398534308,1765801843972,-156.365571,0.00018356,2]
[398534309,1765801843981,-967.946103,0.00018356,2]
[398534310,1765801843990,-967.946103,0.00018356,2]
[398534311,1765801843999,-967.946103,0.00018356,2]
[398534312,1765801844009,-967.946103,0.00018356,2]
[398534313,1765801844018,-153.530939,0.00018356,2]
[398534314,1765801844027,-151.0,0.00018356,2]
[398534315,1765801844036,-445.598813,0.00018356,2]
[398534316,1765801844045,-151.0,0.00018356,2]
[398534317,1765801844054,-445.598813,0.00018356,2]
[398534318,1765801844063,-151.0,0.00018356,2]
[398534319,1765801844072,-151.0,0.00018356,2]